bitfinex/quotes_SOLUSD_20250529
["timestamp","ask_amount","ask_price","bid_price","bid_amount"]
[1748551482178,17.21198682,166.99,166.98,19.07613357]
[1748551483388,5.98671655,167.04,166.98,25.06487473]
[1748551483588,17.21198682,166.99,166.98,25.06487473]
[1748551489184,1.6644,167.09,167.02,19.07613357]
[1748551489385,17.21198682,167.03,167.02,19.07613357]
[1748551491384,23.19893527,167.03,167.02,19.07613357]
[1748551492189,23.19893527,167.03,166.99,19.07613357]
[1748551492413,17.21198682,167.0,166.99,19.07613357]
[1748551497319,23.20001077,167.0,166.94,18.64964886]
[1748551497523,17.21198682,166.95,166.94,18.79181043]
[1748551497727,17.21198682,166.95,166.94,18.64964886]
[1748551497938,17.21198682,166.95,166.93,9.6]
[1748551498117,17.21198682,166.94,166.93,35.6]
[1748551498319,17.21198682,166.94,166.93,54.24964886]
[1748551498927,17.21198682,166.94,166.93,54.533972]
[1748551499129,17.21198682,166.94,166.93,60.66666852]
[1748551499335,17.21198682,166.94,166.93,54.533972]
[1748551499634,17.21198682,166.94,166.93,54.67613357]
[1748551500039,5.98836609,167.0,166.94,19.07613357]
[1748551500337,17.21198682,166.95,166.94,19.07613357]
[1748551502237,17.21198682,166.95,166.94,25.06630968]
[1748551503512,17.21198682,166.95,166.94,19.07613357]
[1748551504041,17.21198682,166.95,166.93,35.6]
[1748551504042,23.20180413,166.95,166.93,9.6]
[1748551504242,17.21198682,166.94,166.93,18.64964886]
[1748551504960,17.21198682,166.94,166.93,18.933972]
[1748551505248,17.21198682,166.94,166.93,0.28432314]
[1748551505429,23.20216293,166.94,166.93,0.28432314]
[1748551505742,23.20216293,166.94,166.9,18.64964886]
[1748551505958,17.21198682,166.91,166.87,18.64964886]
[1748551506161,20.96561638,166.94,166.88,0.42648471]
[1748551506318,20.96561638,166.94,166.87,18.64964886]
[1748551506319,34.42397364,166.89,166.87,18.64964886]
[1748551506515,34.42397364,166.88,166.86,9.7]
[1748551506722,17.21198682,166.87,166.86,9.7]
[1748551506922,17.21198682,166.87,166.86,28.77613357]
[1748551507141,17.21198682,166.87,166.86,28.34964886]
[1748551507448,17.21198682,166.87,166.86,28.77613357]
[1748551507958,17.21198682,166.87,166.86,28.49181043]
[1748551508619,17.21198682,166.87,166.86,28.77613357]
[1748551510360,20.96561638,166.94,166.88,0.28432314]
[1748551510569,34.42397364,166.89,166.88,0.28432314]
[1748551511960,40.41594439,166.89,166.88,0.28432314]
[1748551512941,34.42397364,166.89,166.88,0.28432314]
[1748551513464,40.41594439,166.89,166.88,0.28432314]
[1748551513958,34.42397364,166.89,166.88,0.28432314]
[1748551515240,40.41594439,166.89,166.88,0.28432314]
[1748551516260,34.42397364,166.89,166.88,0.28432314]
[1748551516639,40.41594439,166.89,166.88,0.28432314]
[1748551519185,34.42397364,166.89,166.88,0.28432314]
[1748551519684,40.41594439,166.89,166.88,0.28432314]
[1748551521778,40.41594439,166.89,166.87,0.14216157]
[1748551521963,34.42397364,166.88,166.87,0.14216157]
[1748551522586,5.99125277,166.91,166.87,0.14216157]
[1748551522763,34.42397364,166.88,166.87,0.14216157]
[1748551525389,5.99206069,166.89,166.87,0.14216157]
[1748551525571,34.42397364,166.88,166.87,0.14216157]
[1748551528383,40.41630345,166.88,166.86,0.14216157]
[1748551528560,17.21198682,166.87,166.86,0.14216157]
[1748551529593,23.20467573,166.87,166.86,0.14216157]
[1748551529793,5.99161174,166.9,166.86,0.14216157]
[1748551529998,8.1908,166.93,166.86,0.42648471]
[1748551529999,17.21198682,166.87,166.86,0.42648471]
[1748551530866,17.21198682,166.87,166.86,25.06918163]
[1748551533484,17.21198682,166.88,166.87,19.07613357]
[1748551534480,17.21198682,166.88,166.87,25.06882248]
[1748551535176,17.21198682,166.88,166.87,19.07613357]
[1748551537074,5.99053495,166.93,166.88,0.28432314]
[1748551537382,17.21198682,166.89,166.88,0.28432314]
[1748551538978,5.99053495,166.93,166.88,0.28432314]
[1748551539178,17.49025256,166.94,166.89,18.79181043]
[1748551539393,5.99025256,166.94,166.9,0.28432314]
[1748551540518,17.21198682,166.91,166.9,0.28432314]
[1748551542480,5.99066442,166.93,166.9,0.28432314]
[1748551542680,17.21198682,166.91,166.9,0.28432314]
[1748551545395,23.20323959,166.91,166.9,0.28432314]
[1748551545579,23.20323959,166.91,166.88,0.14216157]
[1748551545780,17.21198682,166.89,166.88,0.14216157]
[1748551550228,23.20395757,166.89,166.88,0.14216157]
[1748551550385,17.21198682,166.89,166.87,18.64964886]
[1748551550585,17.21198682,166.88,166.87,18.79181043]
[1748551550816,17.21198682,166.88,166.87,19.07613357]
[1748551553125,5.99017611,166.94,166.88,0.42648471]
[1748551553324,17.21198682,166.89,166.88,0.42648471]
[1748551555188,5.99060777,166.93,166.9,0.28432314]
[1748551555397,17.21198682,166.91,166.9,0.28432314]
[1748551557526,26.47381806,166.96,166.88,0.42648471]
[1748551557695,17.21198682,166.9,166.88,0.42648471]
[1748551557895,17.21198682,166.89,166.88,0.42648471]
[1748551558920,17.21198682,166.89,166.88,0.28432314]
[1748551559327,23.20395757,166.89,166.88,0.28432314]
[1748551559700,23.20395757,166.89,166.88,0.42648471]
[1748551560004,23.20395757,166.89,166.87,0.14216157]
[1748551560196,34.42397364,166.88,166.87,0.14216157]
[1748551560393,34.42397364,166.88,166.83,18.64964886]
[1748551560596,17.21198682,166.88,166.84,0.42648471]
[1748551560998,20.97189764,166.89,166.84,0.42648471]
[1748551562022,17.21198682,166.85,166.84,0.42648471]
[1748551562321,14.97992689,166.89,166.84,0.42648471]
[1748551562527,17.21198682,166.85,166.84,0.42648471]
[1748551564444,5.99317205,166.86,166.84,0.42648471]
[1748551564645,17.21198682,166.85,166.84,0.42648471]
[1748551565303,5.99232981,166.88,166.84,0.42648471]
[1748551565622,17.21198682,166.85,166.84,0.42648471]
[1748551567344,17.21198682,166.88,166.84,0.42648471]
[1748551567345,5.99232981,166.88,166.84,0.42648471]
[1748551567631,17.21198682,166.85,166.84,0.42648471]
[1748551568411,5.99232981,166.88,166.84,0.42648471]
[1748551568630,17.21198682,166.85,166.84,0.42648471]
[1748551572821,5.99125277,166.91,166.86,0.42648471]
[1748551573030,17.21198682,166.9,166.89,19.07613357]
[1748551574540,23.20359856,166.9,166.89,19.07613357]
[1748551577064,17.21198682,166.9,166.89,19.07613357]
[1748551579255,23.20359856,166.9,166.89,19.07613357]
[1748551579764,5.99139485,166.91,166.89,19.07613357]
[1748551579919,17.21198682,166.9,166.89,19.07613357]
[1748551580530,17.21198682,166.9,166.89,18.53613357]
[1748551580729,9.86,166.95,166.89,18.53613357]
[1748551580929,38.29718473,166.96,166.89,18.53613357]
[1748551580930,17.21198682,166.91,166.89,18.53613357]
[1748551581139,17.21198682,166.9,166.89,18.53613357]
[1748551582535,17.21198682,166.9,166.89,18.96261828]
[1748551584738,5.99097857,166.92,166.9,0.42648471]
[1748551585066,17.21198682,166.91,166.9,0.42648471]
[1748551587140,5.98981731,166.95,166.9,0.42648471]
[1748551587353,17.21198682,166.91,166.9,0.42648471]
[1748551588160,5.98981731,166.95,166.9,0.42648471]
[1748551588344,17.21198682,166.91,166.9,0.42648471]
[1748551590245,20.96385646,166.96,166.9,0.42648471]
[1748551590456,17.21198682,166.91,166.9,0.42648471]
[1748551591859,5.99020722,166.94,166.9,0.42648471]
[1748551592069,17.21198682,166.91,166.9,0.42648471]
[1748551593251,17.21198682,166.91,166.88,18.64964886]
[1748551593450,34.42397364,166.89,166.82,9.86]
[1748551593651,17.21198682,166.83,166.82,9.86]
[1748551594340,17.21198682,166.88,166.83,19.07613357]
[1748551594539,17.21198682,166.84,166.83,19.07613357]
[1748551594862,17.21198682,166.84,166.83,18.64964886]
[1748551595375,17.21198682,166.84,166.83,19.07613357]
[1748551595551,17.21198682,166.84,166.83,18.79181043]
[1748551595872,17.21198682,166.84,166.83,19.07613357]
[1748551596654,17.21198682,166.88,166.84,0.42648471]
[1748551596860,17.21198682,166.85,166.84,0.42648471]
[1748551598867,5.99123034,166.92,166.84,25.06990005]
[1748551599050,17.21198682,166.87,166.86,45.07613357]
[1748551599865,17.21198682,166.87,166.86,51.06918163]
[1748551600946,17.21198682,166.87,166.86,45.07613357]
[1748551601885,17.21198682,166.87,166.86,51.06918163]
[1748551602055,17.21198682,166.88,166.87,19.07613357]
[1748551602375,6.1588,166.94,166.88,0.42648471]
[1748551602559,17.21198682,166.89,166.88,0.42648471]
[1748551616985,5.99112116,166.92,166.88,0.42648471]
[1748551617184,17.21198682,166.89,166.88,0.42648471]
[1748551618368,23.20395757,166.89,166.88,0.42648471]
[1748551618979,40.41594439,166.89,166.85,9.9]
[1748551619285,40.41594439,166.89,166.82,18.64964886]
[1748551619286,5.99340725,166.85,166.82,18.64964886]
[1748551619461,17.21198682,166.83,166.81,18.64964886]
[1748551619661,17.21198682,166.82,166.81,18.64964886]
[1748551620107,17.21198682,166.82,166.81,23.51527285]
[1748551620278,17.21198682,166.82,166.81,23.94175756]
[1748551622175,23.20647189,166.82,166.81,19.07613357]
[1748551622598,23.20647189,166.82,166.81,18.64964886]
[1748551623105,23.20647189,166.82,166.8,9.9]
[1748551623278,34.42397364,166.81,166.76,18.64964886]
[1748551623487,17.21198682,166.77,166.76,18.64964886]
[1748551623685,17.21198682,166.77,166.76,0.42648471]
[1748551624002,17.21198682,166.77,166.74,17.63798188]
[1748551624222,5.99664188,166.76,166.75,19.07613357]
[1748551624373,23.2086287,166.76,166.75,18.64964886]
[1748551624770,23.2086287,166.76,166.75,19.07613357]
[1748551625001,23.2086287,166.76,166.74,9.9]
[1748551625292,17.21198682,166.75,166.74,28.54964886]
[1748551625666,17.21198682,166.75,166.74,18.64964886]
[1748551625869,17.21198682,166.75,166.74,18.933972]
[1748551626264,23.20898831,166.75,166.74,19.07613357]
[1748551626494,17.21198682,166.75,166.74,19.07613357]
[1748551626692,5.99640413,166.77,166.75,19.07613357]
[1748551626877,5.99520383,166.8,166.77,0.42648471]
[1748551627069,17.21198682,166.78,166.77,0.42648471]
[1748551628881,23.20790959,166.78,166.77,0.42648471]
[1748551629081,23.20790959,166.78,166.75,0.14216157]
[1748551629273,17.21198682,166.76,166.75,18.64964886]
[1748551629596,17.21198682,166.76,166.75,0.14216157]
[1748551630503,23.2086287,166.76,166.75,0.14216157]
[1748551633276,23.2086287,166.76,166.71,18.64964886]
[1748551633477,17.21198682,166.72,166.71,18.64964886]
[1748551633796,17.21198682,166.72,166.71,18.933972]
[1748551634186,17.21198682,166.72,166.71,19.07613357]
[1748551635597,17.21198682,166.72,166.71,25.07457397]
[1748551636615,17.21198682,166.72,166.71,19.07613357]
[1748551636829,11.5,166.78,166.72,0.42648471]
[1748551636981,17.21198682,166.74,166.72,0.42648471]
[1748551637310,17.21198682,166.73,166.72,0.42648471]
[1748551638820,17.21198682,166.73,166.72,6.42456532]
[1748551639108,17.21198682,166.74,166.72,6.42456532]
[1748551639623,5.99634521,166.77,166.74,18.64964886]
[1748551640709,17.21198682,166.75,166.74,19.07613357]
[1748551640915,17.21198682,166.8,166.75,0.42648471]
[1748551641135,17.21198682,166.77,166.75,0.42648471]
[1748551641303,17.21198682,166.78,166.77,26.0]
[1748551641606,17.21198682,166.78,166.77,45.07613357]
[1748551641810,44.46291375,166.87,166.78,19.07613357]
[1748551641999,17.21198682,166.79,166.78,19.07613357]
[1748551647823,17.21198682,166.8,166.78,19.07613357]
[1748551648024,17.21198682,166.8,166.78,25.07190944]
[1748551648225,17.21198682,166.79,166.78,25.07190944]
[1748551648427,17.21198682,166.79,166.78,19.07613357]
[1748551649754,17.21198682,166.8,166.78,25.07205634]
[1748551650128,17.21198682,166.81,166.78,25.07205634]
[1748551650333,17.21198682,166.82,166.78,42.28404316]
[1748551650728,17.21198682,166.83,166.78,42.28404316]
[1748551651547,17.21198682,166.82,166.78,42.28404316]
[1748551651750,17.21198682,166.82,166.78,25.07205634]
[1748551655853,5.99351112,166.85,166.78,42.28404316]
[1748551656059,5.99232981,166.88,166.82,18.64964886]
[1748551656262,17.21198682,166.85,166.83,0.42648471]
[1748551656556,5.99232981,166.88,166.83,0.42648471]
[1748551656864,8.1655,166.91,166.83,0.42648471]
[1748551657162,17.21198682,166.87,166.83,0.42648471]
[1748551657754,17.21198682,166.86,166.83,0.42648471]
[1748551658338,17.21198682,166.86,166.85,0.42648471]
[1748551658734,17.21198682,166.87,166.85,0.42648471]
[1748551658940,17.21198682,166.89,166.85,0.42648471]
[1748551659135,17.21198682,166.89,166.88,19.07613357]
[1748551659861,23.20395757,166.89,166.88,19.07613357]
[1748551662163,23.20395757,166.89,166.82,18.64964886]
[1748551662164,55.39587128,166.89,166.82,18.64964886]
[1748551662349,17.21198682,166.83,166.82,18.64964886]
[1748551662537,17.21198682,166.83,166.82,45.07613357]
[1748551662937,17.21198682,166.83,166.82,44.64964886]
[1748551663582,17.21198682,166.83,166.82,45.07613357]
[1748551664171,17.21198682,166.83,166.82,48.01826683]
[1748551665047,17.21198682,166.83,166.82,45.07613357]
[1748551666740,5.99381112,166.84,166.83,0.42648471]
[1748551666968,23.20579794,166.84,166.83,0.42648471]
[1748551667980,5.99381112,166.84,166.83,0.42648471]
[1748551668177,23.20579794,166.84,166.83,0.42648471]
[1748551668560,17.21198682,166.84,166.83,0.42648471]
[1748551668986,5.99352089,166.85,166.83,0.42648471]
[1748551669275,17.21198682,166.84,166.83,0.42648471]
[1748551670473,23.2057533,166.84,166.83,0.42648471]
[1748551670673,5.99376648,166.84,166.83,0.42648471]
[1748551670876,23.2057533,166.84,166.83,0.42648471]
[1748551671260,23.2057533,166.84,166.83,0.28432314]
[1748551671598,23.2057533,166.84,166.83,0.42648471]
[1748551676408,17.21198682,166.84,166.83,0.42648471]
[1748551681526,17.21198682,166.88,166.83,0.42648471]
[1748551681527,5.99308322,166.86,166.83,0.42648471]
[1748551681818,17.21198682,166.84,166.83,0.42648471]
[1748551683647,23.2057533,166.84,166.83,0.42648471]
[1748551683936,17.21198682,166.84,166.83,0.42648471]
[1748551684615,17.21198682,166.85,166.83,0.42648471]
[1748551684813,5.99261084,166.88,166.83,0.42648471]
[1748551685014,17.21198682,166.86,166.85,0.42648471]
[1748551686232,23.20503488,166.86,166.85,0.42648471]
[1748551687219,5.99304806,166.86,166.84,0.42648471]
[1748551687420,17.21198682,166.86,166.84,0.42648471]
[1748551688815,17.21198682,166.85,166.84,0.42648471]
[1748551691742,17.21198682,166.85,166.82,19.07613357]
[1748551691921,17.21198682,166.84,166.82,25.07060468]
[1748551692654,17.21198682,166.85,166.82,25.07060468]
[1748551693024,17.21198682,166.84,166.82,25.07060468]
[1748551693442,5.99161174,166.9,166.82,25.07060468]
[1748551693631,17.21198682,166.87,166.84,0.42648471]
[1748551694335,17.21198682,166.86,166.84,0.42648471]
[1748551695853,17.21198682,166.86,166.84,19.07613357]
[1748551696143,17.21198682,166.87,166.83,19.07613357]
[1748551696354,17.21198682,166.87,166.83,25.07014507]
[1748551696543,17.21198682,166.86,166.83,25.07014507]
[1748551696937,5.99240051,166.88,166.83,25.07014507]
[1748551696938,17.21198682,166.85,166.83,25.07014507]
[1748551697138,17.21198682,166.85,166.83,19.07613357]
[1748551697839,17.21198682,166.85,166.83,25.07024107]
[1748551699931,17.21198682,166.84,166.83,19.07613357]
[1748551700344,17.21198682,166.84,166.83,18.64964886]
[1748551700554,17.21198682,166.84,166.82,18.64964886]
[1748551700732,17.21198682,166.88,166.82,18.64964886]
[1748551700733,17.21198682,166.83,166.82,18.64964886]
[1748551701058,17.21198682,166.84,166.83,0.28432314]
[1748551701357,17.21198682,166.84,166.83,0.42648471]
[1748551701651,5.99286726,166.87,166.83,0.42648471]
[1748551701828,17.21198682,166.84,166.83,0.42648471]
[1748551703040,5.99125277,166.91,166.85,0.42648471]
[1748551703363,17.21198682,166.86,166.85,0.42648471]
[1748551705323,17.21198682,166.86,166.83,0.42648471]
[1748551705654,17.21198682,166.85,166.83,0.42648471]
[1748551706740,17.21198682,166.84,166.83,0.42648471]
[1748551706928,17.21198682,166.84,166.83,0.28432314]
[1748551707348,17.21198682,166.84,166.83,0.42648471]
[1748551711850,5.99315561,166.86,166.83,0.42648471]
[1748551712058,17.21198682,166.84,166.83,0.42648471]
[1748551716737,17.21198682,166.85,166.84,19.07613357]
[1748551717176,5.99125277,166.91,166.85,0.42648471]
[1748551717344,17.21198682,166.87,166.86,19.07613357]
[1748551718539,5.99166489,166.9,166.87,0.42648471]
[1748551718762,17.21198682,166.88,166.87,0.42648471]
[1748551723789,17.21198682,166.88,166.85,19.07613357]
[1748551723967,17.21198682,166.88,166.85,28.71613357]
[1748551724504,17.21198682,166.88,166.85,34.70953859]
[1748551724663,5.98981731,166.95,166.88,26.0]
[1748551724868,20.96436058,166.95,166.9,0.42648471]
[1748551725102,17.21198682,166.91,166.9,0.42648471]
[1748551730392,5.99076135,166.93,166.9,0.42648471]
[1748551730592,17.21198682,166.91,166.9,0.42648471]
[1748551732202,23.20323959,166.91,166.86,26.0]
[1748551732412,5.99125277,166.91,166.87,18.64964886]
[1748551732572,17.21198682,166.88,166.87,0.42648471]
[1748551742013,11.03161451,166.88,166.87,0.42648471]
[1748551747502,19.4328,166.96,166.88,19.07613357]
[1748551747809,11.03161451,166.92,166.88,19.07613357]
[1748551748011,11.03161451,166.89,166.88,19.07613357]
[1748551751601,11.03161451,166.89,166.88,25.06846338]
[1748551751803,11.03161451,166.9,166.88,25.06846338]
[1748551753708,5.98993176,166.95,166.88,25.06846338]
[1748551754024,11.03161451,166.9,166.88,25.06846338]
[1748551755014,7.9328,166.96,166.88,40.04928792]
[1748551755226,11.03161451,166.92,166.88,40.04928792]
[1748551756604,11.03161451,166.92,166.88,51.08090243]
[1748551758409,11.03161451,166.92,166.88,40.04928792]
[1748551758607,11.03161451,166.92,166.88,51.08090243]
[1748551759227,11.03161451,166.92,166.88,40.04928792]
[1748551759522,11.03161451,166.92,166.88,25.06846338]
[1748551760105,11.03161451,166.9,166.88,25.06846338]
[1748551760319,11.03161451,166.89,166.88,24.64197867]
[1748551760703,11.03161451,166.89,166.88,25.06846338]
[1748551760906,11.03161451,166.9,166.89,19.07613357]
[1748551761391,11.03161451,166.91,166.89,19.07613357]
[1748551762310,11.03161451,166.93,166.89,6.41828794]
[1748551763102,11.03161451,166.92,166.89,6.41828794]
[1748551763446,11.03161451,166.9,166.89,0.14216157]
[1748551763800,11.03161451,166.9,166.87,19.07613357]
[1748551764005,11.03161451,166.9,166.87,18.64964886]
[1748551764219,11.03161451,166.89,166.87,5.99268891]
[1748551764422,11.03161451,166.89,166.88,0.42648471]
[1748551764701,11.03161451,166.9,166.88,0.42648471]
[1748551765013,11.03161451,166.91,166.88,0.42648471]
[1748551765715,11.03161451,166.91,166.9,19.07613357]
[1748551766141,11.03161451,166.91,166.9,0.42648471]
[1748551768520,11.03161451,166.91,166.9,6.41809645]
[1748551769436,11.03161451,166.92,166.9,6.41809645]
[1748551769618,11.03161451,166.92,166.91,0.42648471]
[1748551770021,11.03161451,166.92,166.91,25.06738634]
[1748551771646,11.03161451,166.93,166.92,18.64964886]
[1748551773346,11.03161451,166.93,166.91,19.07613357]
[1748551774141,11.03161451,166.92,166.91,19.07613357]
[1748551777220,11.03161451,166.92,166.91,6.41773748]
[1748551778423,11.03161451,166.93,166.91,6.41773748]
[1748551778824,11.03161451,166.94,166.91,6.41773748]
[1748551779221,1.6144,166.98,166.93,0.42648471]
[1748551779222,5.9888191,166.98,166.93,0.42648471]
[1748551779428,11.03161451,166.95,166.94,18.64964886]
[1748551779943,5.98838253,166.99,166.95,0.42648471]
[1748551781244,11.03161451,166.96,166.95,0.42648471]
[1748551782037,11.03161451,166.96,166.93,18.64964886]
[1748551782260,5.98886192,166.98,166.93,18.64964886]
[1748551782261,11.03161451,166.95,166.93,18.64964886]
[1748551782566,11.03161451,166.94,166.93,19.07613357]
[1748551783059,11.03161451,166.94,166.93,0.42648471]
[1748551786855,11.03161451,166.94,166.93,19.07613357]
[1748551787249,11.03161451,166.94,166.93,0.42648471]
[1748551787761,11.03161451,166.95,166.94,0.42648471]
[1748551788469,5.98806643,167.0,166.94,0.42648471]
[1748551788654,11.03161451,166.97,166.94,0.42648471]
[1748551789244,11.03161451,166.97,166.95,18.64964886]
[1748551789467,11.03161451,166.98,166.95,18.64964886]
[1748551790264,11.03161451,166.98,166.96,0.42648471]
[1748551791568,11.03161451,166.97,166.96,0.42648471]
[1748551793557,11.03161451,166.97,166.95,0.42648471]
[1748551794671,11.03161451,166.96,166.95,0.42648471]
[1748551795465,11.03161451,166.97,166.95,0.42648471]
[1748551796254,5.98813278,167.0,166.95,6.41630112]
[1748551796255,11.03161451,166.98,166.95,6.41630112]
[1748551796891,11.03161451,166.98,166.95,0.42648471]
[1748551797390,11.03161451,166.97,166.95,0.42648471]
[1748551801371,11.03161451,166.97,166.96,19.07613357]
[1748551802075,11.03161451,166.97,166.96,0.42648471]
[1748551802485,11.03161451,166.97,166.95,18.64964886]
[1748551802654,11.03161451,166.96,166.94,9.6]
[1748551802855,5.98909983,166.97,166.95,0.42648471]
[1748551803078,5.98909983,166.97,166.95,0.28432314]
[1748551803463,5.98909983,166.97,166.95,0.42648471]
[1748551803679,20.9571544,167.01,166.95,0.42648471]
[1748551804053,11.03161451,166.96,166.95,0.42648471]
[1748551804786,11.03161451,166.96,166.95,19.07613357]
[1748551805187,11.03161451,166.97,166.95,19.07613357]
[1748551805483,11.03161451,166.98,166.95,19.07613357]
[1748551805790,11.03161451,166.98,166.95,25.06594124]
[1748551806865,11.03161451,166.97,166.95,25.06594124]
[1748551807179,11.03161451,166.96,166.95,19.07613357]
[1748551807982,11.03161451,166.96,166.95,18.933972]
[1748551808388,11.03161451,166.96,166.95,19.07613357]
[1748551809667,11.03161451,166.97,166.96,0.14216157]
[1748551809889,7.51252274,167.02,166.96,0.14216157]
[1748551810187,17.21380576,166.99,166.96,0.14216157]
[1748551811006,5.98694845,167.03,166.98,19.07613357]
[1748551811205,17.21380576,167.0,166.98,19.07613357]
[1748551812278,17.21380576,167.0,166.98,6.41512441]
[1748551812597,1.506,167.07,167.0,0.42648471]
[1748551812785,17.21380576,167.02,167.0,0.42648471]
[1748551813091,17.21380576,167.01,167.0,0.42648471]
[1748551814399,5.98675697,167.04,167.0,0.42648471]
[1748551814595,17.21380576,167.01,167.0,0.42648471]
[1748551820503,17.21380576,167.03,167.01,19.07613357]
[1748551821404,7.49152716,167.07,167.02,0.42648471]
[1748551821742,17.21380576,167.06,167.02,0.42648471]
[1748551822202,17.21380576,167.05,167.02,0.42648471]
[1748551822499,17.21380576,167.05,167.04,0.42648471]
[1748551822700,17.20036201,167.05,167.04,0.42648471]
[1748551823577,17.20036201,167.06,167.04,0.42648471]
[1748551824282,23.18635473,167.06,167.03,0.42648471]
[1748551825400,17.20036201,167.06,167.03,0.42648471]
[1748551826073,1.6451,167.12,167.06,19.07613357]
[1748551826282,1.6451,167.12,167.06,45.89649558]
[1748551826283,17.20036201,167.1,167.06,45.89649558]
[1748551826476,17.20036201,167.1,167.06,28.69613357]
[1748551826741,17.20036201,167.1,167.06,34.68198676]
[1748551827917,17.20036201,167.1,167.06,51.88234877]
[1748551829304,17.20036201,167.07,167.06,28.69613357]
[1748551829609,17.20036201,167.07,167.06,28.26964886]
[1748551829803,17.20036201,167.07,167.06,28.69613357]
[1748551830304,17.20036201,167.07,167.06,28.26964886]
[1748551830506,5.98409183,167.11,167.07,0.42648471]
[1748551830706,17.20036201,167.1,167.07,0.42648471]
[1748551831412,17.20036201,167.11,167.08,18.64964886]
[1748551831605,17.20036201,167.11,167.09,0.42648471]
[1748551833027,17.20036201,167.1,167.09,0.42648471]
[1748551833919,17.20036201,167.1,167.08,0.42648471]
[1748551834129,17.20036201,167.09,167.08,0.42648471]
[1748551837021,17.20036201,167.09,167.07,19.07613357]
[1748551837328,17.20036201,167.08,167.07,19.07613357]
[1748551839823,17.20036201,167.08,167.06,9.62]
[1748551840031,17.20036201,167.08,167.07,18.64964886]
[1748551840334,5.98444045,167.1,167.08,0.14216157]
[1748551840544,5.98444045,167.1,167.08,0.42648471]
[1748551841241,20.94435766,167.11,167.08,0.42648471]
[1748551841423,17.20036201,167.09,167.08,0.42648471]
[1748551843330,23.18516062,167.09,167.08,0.42648471]
[1748551843712,23.18516062,167.09,167.07,18.64964886]
[1748551843909,17.20036201,167.08,167.07,18.64964886]
[1748551844134,17.20036201,167.08,167.07,18.79181043]
[1748551845333,23.18551882,167.08,167.07,18.79181043]
[1748551847619,23.18551882,167.08,167.02,18.79181043]
[1748551847822,23.18551882,167.08,167.02,18.64964886]
[1748551848023,5.98515681,167.08,167.03,0.28432314]
[1748551848554,5.98515681,167.08,167.03,0.42648471]
[1748551849238,17.20036201,167.04,167.03,0.42648471]
[1748551864031,17.20036201,167.04,167.03,19.07613357]
[1748551864343,17.20036201,167.06,167.03,25.06292716]
[1748551864531,17.20036201,167.04,167.03,28.61613357]
[1748551864729,34.40072402,167.04,166.96,1.5863]
[1748551864930,17.20036201,166.97,166.96,1.5863]
[1748551865130,17.20036201,166.97,166.95,5.98957404]
[1748551865354,5.98786333,167.01,166.97,0.42648471]
[1748551865555,5.98786333,167.01,166.97,0.28432314]
[1748551865762,5.98786333,167.01,166.95,18.64964886]
[1748551865941,5.98786333,167.01,166.96,0.14216157]
[1748551866258,20.95702685,167.01,166.94,18.64964886]
[1748551866465,17.20036201,166.95,166.94,18.64964886]
[1748551866639,17.20036201,166.95,166.94,19.07613357]
[1748551867034,17.20036201,166.95,166.94,18.79181043]
[1748551867352,17.20036201,166.96,166.95,0.42648471]
[1748551867555,5.9873069,167.02,166.95,6.41630202]
[1748551867757,17.20036201,166.97,166.95,6.41630202]
[1748551869636,17.20036201,166.99,166.97,26.0]
[1748551869838,17.20036201,167.0,166.98,19.07613357]
[1748551870957,17.20036201,167.0,166.98,25.06482407]
[1748551874538,17.20036201,167.0,166.98,19.07613357]
[1748551874738,17.20036201,166.99,166.98,19.07613357]
[1748551876863,5.98708007,167.03,166.98,25.06485945]
[1748551877073,17.21096012,167.0,166.98,25.06485945]
[1748551878342,23.19761922,167.04,166.98,25.06485945]
[1748551878343,17.21096012,167.01,166.98,25.06485945]
[1748551878739,17.21096012,166.99,166.94,6.4381]
[1748551878938,17.21096012,166.97,166.96,18.64964886]
[1748551879141,17.21096012,166.97,166.96,18.79181043]
[1748551879343,17.21096012,166.98,166.97,0.14216157]
[1748551879565,17.21096012,166.98,166.97,0.42648471]
[1748551882858,17.21096012,166.99,166.97,0.42648471]
[1748551883467,17.21096012,166.99,166.98,19.07613357]
[1748551884662,17.21096012,166.99,166.98,0.42648471]
[1748551886360,5.98767575,167.01,166.99,0.28432314]
[1748551886554,17.21096012,167.0,166.99,0.28432314]
[1748551887371,5.98767575,167.01,166.99,0.28432314]
[1748551887559,17.21096012,167.0,166.99,0.28432314]
[1748551890070,17.21096012,167.0,166.98,0.14216157]
[1748551890264,17.21096012,166.99,166.98,0.14216157]
[1748551893304,5.98659003,167.04,166.98,0.14216157]
[1748551893481,17.21096012,167.0,166.99,0.28432314]
[1748551895490,5.98659003,167.04,166.99,19.07613357]
[1748551895679,17.9061,167.07,167.0,19.07613357]
[1748551895880,17.21096012,167.02,167.0,0.42648471]
[1748551898065,17.21096012,167.02,167.0,6.41439916]
[1748551898293,17.21096012,167.03,167.0,6.41439916]
[1748551900091,17.21096012,167.03,167.0,0.42648471]
[1748551901190,17.21096012,167.01,167.0,0.42648471]
[1748551901876,17.21096012,167.01,166.97,18.64964886]
[1748551902075,44.71954313,167.04,166.97,18.64964886]
[1748551902076,17.21096012,166.98,166.97,18.64964886]
[1748551902494,17.21096012,166.98,166.97,19.07613357]